bitfinex-derivatives/quotes_BNBF0:USTF0_20250331
["timestamp","ask_amount","ask_price","bid_price","bid_amount"]
[1743458527443,0.2874572,606.15,604.79,0.33069329]
[1743458527643,0.30368133,606.14,604.79,0.33069329]
[1743458528242,0.30368133,606.13,604.79,0.33069329]
[1743458528445,0.30368133,606.12,604.79,0.33069329]
[1743458528642,0.30368133,606.11,604.79,0.33069329]
[1743458528840,0.30368133,606.1,604.79,0.33069329]
[1743458529045,0.30368133,606.09,604.79,0.33069329]
[1743458529246,0.30368133,606.08,604.79,0.33069329]
[1743458529447,0.30368133,606.07,604.79,0.33069329]
[1743458529747,0.30368133,606.06,604.79,0.33069329]
[1743458529948,0.30368133,606.05,604.79,0.33069329]
[1743458530247,0.30368133,606.04,604.79,0.33069329]
[1743458530448,0.30368133,606.03,604.79,0.33069329]
[1743458530748,0.30368133,606.12,604.79,0.33069329]
[1743458531049,0.30368133,606.11,604.79,0.33069329]
[1743458531347,0.30368133,606.1,604.79,0.33069329]
[1743458531548,0.30368133,606.09,604.79,0.33069329]
[1743458531740,0.30368133,606.08,604.79,0.33069329]
[1743458531946,0.30368133,606.09,604.79,0.33069329]
[1743458532146,0.28757954,606.1,604.79,0.33069329]
[1743458532147,0.30368133,606.08,604.79,0.33069329]
[1743458532342,0.28757954,606.1,604.79,0.33069329]
[1743458532343,0.30368133,606.09,604.79,0.33069329]
[1743458532648,0.28757954,606.1,604.79,0.33069329]
[1743458532649,0.30368133,606.08,604.79,0.33069329]
[1743458532851,0.30368133,606.09,604.79,0.33069329]
[1743458533150,0.30368133,606.08,604.79,0.33069329]
[1743458533349,0.30368133,606.07,604.79,0.33069329]
[1743458533550,0.30368133,606.09,604.79,0.33069329]
[1743458533748,0.30368133,606.08,604.79,0.33069329]
[1743458533950,0.30368133,606.09,604.79,0.33069329]
[1743458534150,0.30368133,606.08,604.79,0.33069329]
[1743458534347,0.30368133,606.69,604.79,0.33069329]
[1743458534651,0.28758429,606.08,604.79,0.33069329]
[1743458534851,0.30368133,606.07,604.79,0.33069329]
[1743458535050,0.28751301,606.07,604.79,0.33069329]
[1743458535250,0.30368133,606.06,604.79,0.33069329]
[1743458536351,0.30368133,606.05,604.79,0.33069329]
[1743458536651,0.30368133,606.04,604.79,0.33069329]
[1743458536848,0.30368133,606.03,604.79,0.33069329]
[1743458537053,1.199,606.05,604.79,0.33069329]
[1743458537054,0.30365698,606.02,604.79,0.33069329]
[1743458537247,0.30365698,606.01,604.79,0.33069329]
[1743458537452,0.30365698,606.0,604.79,0.33069329]
[1743458538553,0.2875736,606.01,604.79,0.33069329]
[1743458538752,0.30365726,606.0,604.79,0.33069329]
[1743458538945,0.30365726,605.99,604.79,0.33069329]
[1743458539147,0.30365726,605.98,604.79,0.33069329]
[1743458539352,0.30365726,605.97,604.79,0.33069329]
[1743458539649,0.30365726,605.96,604.79,0.33069329]
[1743458539955,0.30365726,605.95,604.79,0.33069329]
[1743458540149,0.30365726,605.94,604.79,0.33069329]
[1743458540351,0.30365726,605.93,604.79,0.33069329]
[1743458540552,0.30365726,605.92,604.79,0.33069329]
[1743458540752,0.30365726,605.91,604.79,0.33069329]
[1743458541054,0.30365726,605.9,604.79,0.33069329]
[1743458541254,0.30365726,605.93,604.79,0.33069329]
[1743458542349,0.28758429,605.94,604.79,0.33069329]
[1743458542552,0.30366561,605.93,604.79,0.33069329]
[1743458543353,0.30366561,606.04,604.79,0.33069329]
[1743458543554,0.28762708,605.92,604.79,0.33069329]
[1743458543859,0.30366561,605.91,604.79,0.33069329]
[1743458544157,0.30366561,605.9,604.79,0.33069329]
[1743458544349,0.30366561,605.89,604.79,0.33069329]
[1743458544549,0.30366561,606.04,604.79,0.33069329]
[1743458544856,1.199,606.05,604.79,0.33069329]
[1743458544857,0.30366561,606.03,604.79,0.33069329]
[1743458545057,0.30366561,606.02,604.79,0.33069329]
[1743458545260,0.30366561,606.01,604.79,0.33069329]
[1743458545451,0.30366561,606.0,604.79,0.33069329]
[1743458545655,0.28762232,606.03,604.79,0.33069329]
[1743458545656,0.30366561,605.99,604.79,0.33069329]
[1743458545856,0.30366561,605.98,604.79,0.33069329]
[1743458546052,0.30366561,605.97,604.79,0.33069329]
[1743458546254,0.30366561,605.96,604.79,0.33069329]
[1743458546450,0.30366561,605.95,604.79,0.33069329]
[1743458546756,0.30370538,605.94,604.79,0.33069329]
[1743458546959,0.30370538,605.93,604.79,0.33069329]
[1743458547152,0.30370538,605.92,604.79,0.33069329]
[1743458547360,0.30370538,605.91,604.79,0.33069329]
[1743458547558,0.30370538,605.96,604.79,0.33069329]
[1743458547858,0.30370538,605.95,604.79,0.33069329]
[1743458548057,0.30370538,605.96,604.79,0.33069329]
[1743458548255,0.30365397,605.95,604.79,0.33069329]
[1743458548459,0.30365397,605.96,604.79,0.33069329]
[1743458548761,0.30365397,605.95,604.79,0.33069329]
[1743458548954,0.30365397,605.94,604.79,0.33069329]
[1743458549152,0.30365397,605.93,604.79,0.33069329]
[1743458549355,0.30365397,606.04,604.79,0.31855318]
[1743458549554,0.28759855,605.93,604.79,0.31855318]
[1743458549761,1.199,606.05,604.79,0.31855318]
[1743458550055,0.28759142,605.92,604.79,0.31855318]
[1743458550259,0.30364766,605.91,604.79,0.31855318]
[1743458550660,0.2875938,605.91,604.79,0.31855318]
[1743458550853,0.30364766,605.9,604.79,0.31855318]
[1743458551561,0.30365018,605.89,604.79,0.31855318]
[1743458551762,0.30365018,605.9,604.79,0.31855318]
[1743458552358,0.30365018,605.89,604.79,0.31855318]
[1743458552659,0.30365018,605.88,604.79,0.31855318]
[1743458553957,0.28760449,605.89,604.79,0.31855318]
[1743458558169,1.199,606.05,604.79,0.31855318]
[1743458558370,0.30361637,606.04,604.79,0.31855318]
[1743458558570,0.28759499,605.88,604.79,0.31855318]
[1743458558873,0.30361637,605.87,604.79,0.31855318]
[1743458559071,0.2875938,605.87,604.79,0.31855318]
[1743458559275,0.30361637,605.86,604.79,0.31855318]
[1743458560975,0.2875938,605.87,604.79,0.31855318]
[1743458561173,0.30361083,605.86,604.79,0.31855318]
[1743458561374,0.30361083,605.85,604.79,0.31855318]
[1743458561569,0.30361083,605.84,604.79,0.31855318]
[1743458561774,0.28753083,605.85,604.79,0.31855318]
[1743458561972,0.30361083,605.84,604.79,0.31855318]
[1743458562168,0.30361083,606.04,604.79,0.31855318]
[1743458562369,1.199,606.05,604.79,0.31855318]
[1743458562568,0.30352503,606.04,604.79,0.31855318]
[1743458563275,0.28747264,606.03,604.79,0.31855318]
[1743458563470,0.30352503,606.02,604.79,0.31855318]
[1743458564176,1.199,606.05,604.79,0.31855318]
[1743458564371,0.3035195,606.04,604.79,0.31855318]
[1743458564574,0.28745008,606.01,604.79,0.31855318]
[1743458564775,0.3035195,606.0,604.79,0.31855318]
[1743458565677,0.28745008,606.01,604.79,0.31855318]
[1743458565874,0.30351609,606.0,604.79,0.31855318]
[1743458566675,0.28745008,606.01,604.79,0.31855318]
[1743458567081,1.199,606.05,604.79,0.31855318]
[1743458567376,0.28744652,606.0,604.79,0.31855318]
[1743458570279,1.199,606.05,604.79,0.31855318]
[1743458570682,0.28744058,605.99,604.79,0.31855318]
[1743458571985,0.30351953,605.98,604.79,0.31855318]
[1743458573180,0.30351953,605.98,604.8,1.90528985]
[1743458573383,0.30351953,606.04,604.82,0.33067689]
[1743458573582,0.28744414,605.99,604.82,2.23596674]
[1743458573786,0.30351953,605.98,604.82,2.98951095]
[1743458573982,0.30351953,605.98,604.83,1.90528985]
[1743458574183,0.30351953,605.98,604.85,0.33066049]
[1743458575188,0.28744414,605.99,604.85,2.98949455]
[1743458576388,0.28744414,605.99,604.85,0.33066049]
[1743458579193,1.199,606.05,604.85,0.33066049]
[1743458579695,0.28749282,605.98,604.85,0.33066049]
[1743458581897,0.30355798,605.97,604.85,0.33066049]
[1743458582390,1.199,606.05,604.85,0.33066049]
[1743458582391,0.28753083,605.96,604.85,0.33066049]
[1743458582791,0.30355798,605.95,604.85,0.33066049]
[1743458586800,0.28753083,605.96,604.85,0.33066049]
[1743458588295,0.30357725,605.95,604.85,0.33066049]
[1743458588493,0.28744652,605.95,604.85,0.33066049]
[1743458591192,1.167,606.02,604.85,0.33066049]
[1743458591398,0.30357117,606.01,604.85,0.33066049]
[1743458591594,0.28751776,605.94,604.85,0.33066049]
[1743458594201,1.167,606.02,604.85,0.33066049]
[1743458594402,0.30358748,606.01,604.85,0.33066049]
[1743458594599,0.28753558,605.93,604.85,0.33066049]
[1743458594798,0.30358748,605.92,604.85,0.33066049]
[1743458595000,0.30358748,606.01,604.85,0.33066049]
[1743458595203,0.28753439,605.92,604.85,0.33066049]
[1743458595400,0.30358748,605.91,604.85,0.33066049]
[1743458595599,0.30358748,606.01,604.85,0.33066049]
[1743458595799,0.28753439,605.91,604.85,0.33066049]
[1743458595995,0.30358736,605.9,604.85,0.33066049]
[1743458596196,0.30358736,605.89,604.85,0.33066049]
[1743458596397,0.30358736,605.88,604.85,0.33066049]
[1743458596703,0.30358736,605.87,604.85,0.33066049]
[1743458596902,0.30358736,605.89,604.85,0.33066049]
[1743458597202,0.30358736,605.88,604.85,0.33066049]
[1743458597403,0.30358736,606.01,604.85,0.33066049]
[1743458597599,0.28753796,605.88,604.85,0.33066049]
[1743458597905,0.30358736,605.87,604.85,0.33066049]
[1743458598103,0.28752014,605.87,604.85,0.33066049]
[1743458600301,1.167,606.02,604.85,0.33066049]
[1743458600499,0.28751539,605.86,604.85,0.33066049]
[1743458600904,1.167,606.02,604.85,0.33066049]
[1743458601100,0.28751539,605.85,604.85,0.33066049]
[1743458601506,1.167,606.02,604.85,0.33066049]
[1743458601710,0.2875142,605.84,604.85,0.33066049]
[1743458602101,1.167,606.02,604.85,0.33066049]
[1743458602409,0.28751776,605.83,604.85,0.33066049]
[1743458602608,0.30358443,606.01,604.85,0.33066049]
[1743458602609,0.30358206,605.82,604.85,0.33066049]
[1743458602809,0.30358206,605.81,604.85,0.33066049]
[1743458603005,1.167,606.02,604.85,0.33066049]
[1743458603006,0.28751776,605.82,604.85,0.33066049]
[1743458603205,0.30358206,605.81,604.85,0.33066049]
[1743458603406,0.30358206,605.8,604.85,0.33066049]
[1743458603607,0.2875142,605.81,604.85,0.33066049]
[1743458603911,0.30358206,605.8,604.85,0.33066049]
[1743458604713,0.2875142,605.81,604.85,0.33066049]
[1743458606216,1.167,606.02,604.85,0.33066049]
[1743458606416,0.28748689,605.8,604.85,0.33066049]
[1743458606816,1.167,606.02,604.85,0.33066049]
[1743458607015,0.30358243,606.01,604.85,0.33066049]
[1743458607317,0.28751895,605.79,604.85,0.33066049]
[1743458607515,0.30358243,606.01,604.85,0.33066049]
[1743458607516,1.167,606.02,604.85,0.33066049]
[1743458607711,0.28751895,606.0,604.85,0.33066049]
[1743458607912,0.3035828,605.99,604.85,0.33066049]
[1743458608514,0.30358731,605.98,604.85,0.33066049]
[1743458608711,0.30358731,605.97,604.85,0.33066049]
[1743458608912,0.30358731,605.96,604.85,0.33066049]
[1743458609120,0.30358731,605.99,604.85,0.33066049]
[1743458609419,1.167,606.02,604.85,0.33066049]
[1743458609420,0.2875439,605.95,604.85,0.33066049]
[1743458609620,0.30358731,605.94,604.85,0.33066049]
[1743458611516,0.2875439,605.95,604.85,0.33066049]
[1743458611721,0.30364189,605.94,604.85,0.33066049]
[1743458613216,0.30361754,605.93,604.85,0.33066049]
[1743458613422,0.30361754,605.94,604.85,0.33066049]
[1743458613727,0.30361754,605.93,604.85,0.33066049]
[1743458613921,0.30361754,605.92,604.85,0.33066049]
[1743458614120,0.30361754,605.94,604.85,0.33066049]
[1743458615523,0.5911555,605.93,604.85,0.33066049]
[1743458616023,0.30361754,605.92,604.85,0.33066049]
[1743458616423,0.28753796,605.93,604.85,0.33066049]
[1743458618327,1.167,606.02,604.85,0.33066049]
[1743458618525,0.28747026,605.93,604.85,0.33066049]
[1743458618925,1.167,606.02,604.85,0.33066049]
[1743458619128,0.28746433,605.93,604.85,0.33066049]
[1743458619427,1.167,606.02,604.85,0.33066049]
[1743458619725,0.28746314,605.93,604.85,0.33066049]
[1743458620126,1.167,606.02,604.85,0.33066049]
[1743458620328,0.28746076,605.93,604.85,0.33066049]
[1743458620627,2.51031067,606.76,604.85,0.33066049]
[1743458620827,0.30352237,606.66,604.85,0.33066049]
[1743458621026,0.2874572,605.93,604.85,0.33066049]
[1743458621226,0.32967938,606.65,604.85,0.33066049]
[1743458621526,0.28737768,605.93,604.85,0.33066049]
[1743458621827,0.32967938,606.65,604.85,0.33066049]
[1743458622027,0.30352563,606.64,604.85,0.33066049]
[1743458622326,0.28737649,605.93,604.85,0.33066049]
[1743458622521,0.32969025,606.63,604.85,0.33066049]
[1743458622724,0.30352697,606.62,604.85,0.33066049]
[1743458622925,0.63322809,606.61,604.85,0.33066049]
[1743458623124,0.63323353,606.6,604.85,0.33066049]
[1743458623324,0.63323896,606.59,604.85,0.33066049]
[1743458623521,0.6332444,606.58,604.85,0.33066049]
[1743458623726,0.63324983,606.57,604.85,0.33066049]
[1743458623927,0.63325527,606.56,604.85,0.33066049]
[1743458624128,0.32973374,606.55,604.85,0.33066049]
[1743458624324,0.30355207,606.54,604.85,0.33066049]
[1743458624520,1.177,606.58,604.85,0.33066049]
[1743458624521,0.63329668,606.53,604.85,0.33066049]
[1743458624723,0.63330211,606.52,604.85,0.33066049]
[1743458624928,0.63330755,606.51,604.85,0.33066049]
[1743458625130,0.63331299,606.5,604.85,0.33066049]
[1743458625327,0.63331843,606.49,604.85,0.33066049]
[1743458625523,0.30355207,606.48,604.85,0.33066049]
[1743458625727,0.6333293,606.47,604.85,0.33066049]
[1743458626028,0.63333474,606.46,604.85,0.33066049]
[1743458626228,0.63334018,606.45,604.85,0.33066049]
[1743458626524,0.63334561,606.44,604.85,0.33066049]
[1743458626731,0.63335105,606.43,604.85,0.33066049]
[1743458626923,0.30355207,606.42,604.85,0.33066049]
[1743458627127,0.30355207,606.41,604.85,0.33066049]
[1743458627327,0.30353228,606.4,604.85,0.33066049]
[1743458627627,0.30353228,606.39,604.85,0.33066049]
[1743458627828,0.30353228,606.38,604.85,0.33066049]
[1743458628024,0.2874026,606.4,604.85,0.33066049]
[1743458628025,0.30353228,606.37,604.85,0.33066049]
[1743458628228,0.30353228,606.36,604.85,0.33066049]
[1743458628428,0.30353228,606.35,604.85,0.33066049]
[1743458628628,0.30353228,606.34,604.85,0.33066049]
[1743458629024,0.30351396,606.33,604.85,0.33066049]
[1743458629225,0.30351396,606.39,604.85,0.33066049]
[1743458629429,0.30351396,606.38,604.85,0.33066049]
[1743458629632,0.30351396,606.37,604.85,0.33066049]
[1743458629827,0.30351396,606.36,604.85,0.33066049]
[1743458630029,0.30351396,606.39,604.85,0.33066049]
[1743458630230,0.30351396,606.38,604.85,0.33066049]
[1743458630430,0.32979898,606.43,604.85,0.33066049]
[1743458630625,0.30351388,606.42,604.85,0.33066049]
[1743458630825,0.28739785,606.37,604.85,0.33066049]
[1743458631030,0.30351388,606.36,604.85,0.33066049]
[1743458632031,0.30351011,606.35,604.85,0.33066049]
[1743458632227,0.30351011,606.34,604.85,0.33066049]
[1743458632432,0.30351011,606.33,604.85,0.33066049]
[1743458632628,0.28739785,606.37,604.85,0.33066049]
[1743458632629,0.30351011,606.32,604.85,0.33066049]
[1743458632834,0.30351011,606.31,604.85,0.33066049]
[1743458633031,0.30351011,606.36,604.85,0.33066049]
[1743458633331,0.30351011,606.35,604.85,0.33066049]
[1743458633635,0.30350551,606.34,604.85,0.33066049]
[1743458633933,0.30350551,606.33,604.85,0.33066049]
[1743458634135,0.30350551,606.32,604.85,0.33066049]
[1743458634432,0.30350551,606.31,604.85,0.33066049]
[1743458634632,0.30350551,606.3,604.85,0.33066049]
[1743458634832,0.30350551,606.36,604.85,0.33066049]
[1743458635034,0.30350551,606.35,604.85,0.33066049]
[1743458635429,0.30350551,606.34,604.85,0.33066049]
[1743458635630,0.30351591,606.33,604.85,0.33066049]
[1743458635834,0.30351591,606.32,604.85,0.33066049]
[1743458636029,0.30351591,606.36,604.85,0.33066049]
[1743458636235,0.30351591,606.35,604.85,0.33066049]
[1743458636534,0.30351591,606.34,604.85,0.33066049]
[1743458636935,0.28742396,606.35,604.85,0.33066049]
[1743458637135,0.3035139,606.34,604.85,0.33066049]
[1743458638532,0.28742396,606.35,604.85,0.33066049]
[1743458638732,0.3035139,606.34,604.85,0.33066049]
[1743458639634,0.59093311,606.33,604.85,0.33066049]
[1743458639836,0.3035139,606.32,604.85,0.33066049]
[1743458642538,0.59092006,606.31,604.85,0.33066049]
[1743458642838,0.3035139,606.3,604.85,0.33066049]
[1743458644351,0.30356413,606.29,604.85,0.33066049]
[1743458644551,0.30356413,606.28,604.85,0.33066049]
[1743458644852,0.30356413,606.27,604.85,0.33066049]
[1743458645048,0.30356413,606.26,604.85,0.33066049]
[1743458645244,0.30356413,606.3,604.85,0.33066049]
[1743458645451,0.30356413,606.29,604.85,0.33066049]
[1743458645653,0.28748332,606.25,604.85,0.33066049]
[1743458646047,0.30361563,606.24,604.85,0.33066049]
[1743458648451,0.30361563,606.23,604.85,0.33066049]
[1743458648656,0.30361563,606.22,604.85,0.33066049]
[1743458649650,1.09,606.21,604.85,0.33066049]
[1743458649852,0.30361563,606.2,604.85,0.33066049]
[1743458650054,1.41991867,606.21,604.85,0.33066049]
[1743458650055,0.30361563,606.19,604.85,0.33066049]
[1743458650255,0.30361563,606.18,604.85,0.33066049]
[1743458650451,0.30361563,606.17,604.85,0.33066049]
[1743458650756,0.30366875,606.16,604.85,0.33066049]
[1743458651055,0.30366875,606.15,604.85,0.33066049]
[1743458651257,0.30366875,606.14,604.85,0.33066049]
[1743458651556,0.30366875,606.13,604.85,0.33066049]
[1743458651855,0.28754508,606.14,604.85,0.33066049]
[1743458651856,0.30366875,606.12,604.85,0.33066049]
[1743458652057,0.30366875,606.11,604.85,0.33066049]
[1743458652257,0.30366875,606.1,604.85,0.33066049]
[1743458652451,0.30366875,606.09,604.85,0.33066049]
[1743458652657,0.30366875,606.08,604.85,0.33066049]
[1743458652856,0.30366875,606.07,604.85,0.33066049]
[1743458653157,0.30366875,606.06,604.85,0.33066049]
[1743458653354,0.30366875,606.13,604.85,0.33066049]
[1743458653756,0.30366875,606.12,604.85,0.33066049]
[1743458653952,0.30366875,606.11,604.85,0.33066049]
[1743458654157,0.30366875,606.1,604.85,0.33066049]
[1743458654356,0.30366875,606.09,604.85,0.33066049]
[1743458654653,0.30366875,606.08,604.85,0.33066049]
[1743458654855,0.30366875,606.07,604.85,0.33066049]
[1743458655055,0.30366875,606.06,604.85,0.33066049]
[1743458655256,0.30373639,606.05,604.85,0.33066049]
[1743458655552,0.30373639,606.04,604.85,0.33066049]
[1743458655755,0.30373639,606.03,604.85,0.33066049]
[1743458655955,0.30373639,606.02,604.85,0.33066049]
[1743458656158,0.30373639,606.01,604.85,0.33066049]
[1743458656458,0.30373639,606.0,604.85,0.33066049]
[1743458656660,0.30373639,605.99,604.85,0.33066049]
[1743458656861,0.30373639,606.13,604.85,0.33066049]
[1743458657154,0.63370405,606.12,604.85,0.33066049]
[1743458657363,0.30373639,606.11,604.85,0.33066049]
[1743458657659,0.30373639,606.1,604.85,0.33066049]
[1743458657859,0.30373639,606.09,604.85,0.33066049]
[1743458658057,0.30373639,606.08,604.85,0.33066049]
[1743458658355,0.30373639,606.07,604.85,0.33066049]
[1743458658559,0.30373639,606.06,604.85,0.33066049]
[1743458658758,0.30373639,606.05,604.85,0.33066049]
[1743458658955,0.30373639,606.04,604.85,0.33066049]
[1743458659161,0.30373639,606.03,604.85,0.33066049]
[1743458659359,0.30373639,606.02,604.85,0.33066049]
[1743458659559,0.30373639,606.01,604.85,0.33066049]
[1743458659864,0.30373639,606.0,604.85,0.33066049]
[1743458660161,0.30373639,605.99,604.85,0.33066049]
[1743458660362,0.30373639,605.98,604.85,0.33066049]
[1743458660560,0.30373639,605.97,604.85,0.33066049]
[1743458660756,0.30373639,605.96,604.85,0.33066049]
[1743458660962,0.30373639,605.95,604.85,0.33066049]
[1743458661262,0.30373639,605.94,604.85,0.33066049]
[1743458661456,0.30368064,605.93,604.85,0.33066049]
[1743458661658,0.30368064,605.98,604.85,0.33066049]
[1743458661863,0.30368064,605.97,604.85,0.33066049]
[1743458662164,0.30368064,605.96,604.85,0.33066049]
[1743458662364,0.30368064,605.95,604.85,0.33066049]
[1743458662558,0.30368064,605.94,604.85,0.33066049]
[1743458662757,0.30368064,605.93,604.85,0.33066049]
[1743458662963,0.30368064,605.98,604.85,0.33066049]
[1743458663163,0.32996766,606.12,604.85,0.33066049]
[1743458663164,0.30368064,605.97,604.85,0.33066049]
[1743458663364,0.30368064,605.96,604.85,0.33066049]
[1743458663559,0.30368064,605.95,604.85,0.33066049]
[1743458663765,0.30368064,605.94,604.85,0.33066049]
[1743458663966,0.30368064,605.93,604.85,0.33066049]
[1743458664171,0.30368064,605.92,604.85,0.33066049]
[1743458664367,0.30368064,605.91,604.85,0.33066049]
[1743458664567,0.30368064,605.9,604.85,0.33066049]
[1743458664865,0.30368064,605.89,604.85,0.33066049]
[1743458665066,0.30368064,605.88,604.85,0.33066049]
[1743458665266,0.30368064,605.87,604.85,0.33066049]
[1743458665561,0.30368064,605.86,604.85,0.33066049]
[1743458665766,0.30368064,605.85,604.85,0.33066049]
[1743458665966,0.28758786,605.97,604.85,0.33066049]
[1743458666168,0.30374058,605.96,604.85,0.33066049]
[1743458666466,0.30374058,605.95,604.85,0.33066049]
[1743458666769,0.30374058,605.94,604.85,0.33066049]
[1743458666964,0.30374058,605.93,604.85,0.33066049]
[1743458667167,0.30374058,605.92,604.85,0.33066049]
[1743458667361,0.30374058,605.91,604.85,0.33066049]
[1743458667662,0.30372678,605.9,604.85,0.33066049]
[1743458667866,0.30372678,605.96,604.85,0.33066049]
[1743458668065,0.30372678,605.95,604.85,0.33066049]
[1743458668365,0.28758786,605.97,604.85,0.33066049]
[1743458668366,0.30372678,605.94,604.85,0.33066049]
[1743458668566,0.30372678,605.96,604.85,0.33066049]
[1743458668761,0.30372678,605.95,604.85,0.33066049]
[1743458668966,0.30372678,605.96,604.85,0.33066049]
[1743458669370,0.30372678,606.11,604.85,0.33066049]
[1743458669671,0.28762232,605.95,604.85,0.33066049]
[1743458669870,0.30372678,605.94,604.85,0.33066049]
[1743458670465,0.2876247,605.94,604.85,0.33066049]
[1743458670664,0.30373132,605.93,604.85,0.33066049]
[1743458672570,0.30373132,605.92,604.85,0.33066049]
[1743458672765,0.28763896,605.92,604.85,0.33066049]
[1743458672972,0.30373132,605.91,604.85,0.33066049]
[1743458675471,0.28758548,605.9,604.85,0.33066049]
[1743458675970,0.30373132,605.89,604.85,0.33066049]
[1743458678569,0.59134057,605.88,604.85,0.33066049]
[1743458678774,0.30373132,605.87,604.85,0.33066049]
[1743458681473,0.59133106,605.86,604.85,0.33066049]
[1743458681778,0.30373132,605.85,604.85,0.33066049]
[1743458682678,0.28759974,605.86,604.85,0.33066049]
[1743458682881,0.30363987,605.85,604.85,0.33066049]
[1743458684477,0.30363987,606.09,604.85,0.33066049]
[1743458684675,0.28758192,605.84,604.85,0.33066049]
[1743458684875,0.30363987,605.83,604.85,0.33066049]
[1743458685378,0.30363987,605.82,604.85,0.33066049]
[1743458685777,0.28755221,605.83,604.85,0.33066049]
[1743458685982,0.30362859,605.82,604.85,0.33066049]
[1743458687476,0.30362859,605.81,604.85,0.33066049]
[1743458687680,0.30362859,605.8,604.85,0.33066049]
[1743458688882,0.28755934,605.81,604.85,0.33066049]
[1743458689081,0.30363055,605.8,604.85,0.33066049]
[1743458690580,0.30363055,605.79,604.85,0.33066049]
[1743458690784,0.30363055,606.09,604.85,0.33066049]
[1743458691087,0.30363055,606.08,604.85,0.33066049]
[1743458691287,0.30363055,606.07,604.85,0.33066049]
[1743458691487,0.30363055,606.06,604.85,0.33066049]
[1743458691688,0.30363055,606.05,604.85,0.33066049]
[1743458691890,0.28751658,606.08,604.85,0.33066049]
[1743458692189,0.3036289,606.07,604.85,0.33066049]
[1743458692389,0.3036289,606.06,604.85,0.33066049]
[1743458692583,0.3036289,606.05,604.85,0.33066049]
[1743458692789,0.3036289,606.04,604.85,0.33066049]
[1743458692992,0.3036289,606.03,604.85,0.33066049]
[1743458693289,0.3036289,606.02,604.85,0.33066049]
[1743458693486,0.3036289,606.01,604.85,0.33066049]
[1743458693693,0.28751182,606.02,604.85,0.33066049]
[1743458693893,0.30362357,606.01,604.85,0.33066049]
[1743458694085,0.28751182,606.02,604.85,0.33066049]
[1743458694086,0.30362357,606.0,604.85,0.33066049]
[1743458694287,0.30362357,605.99,604.85,0.33066049]
[1743458694492,0.30362357,605.98,604.85,0.33066049]
[1743458694791,0.30362357,605.97,604.85,0.33066049]
[1743458694992,0.28751182,606.02,604.85,0.33066049]
[1743458695189,0.30362313,606.01,604.85,0.33066049]
[1743458695390,0.30362313,606.0,604.85,0.33066049]
[1743458695686,0.30362313,605.99,604.85,0.33066049]
[1743458695991,0.30362313,605.98,604.85,0.33066049]
[1743458696190,0.30362313,605.97,604.85,0.33066049]
[1743458696391,0.30362313,605.96,604.85,0.33066049]
[1743458696891,0.30362313,605.95,604.85,0.33066049]
[1743458697093,0.30362313,605.94,604.85,0.33066049]
[1743458697289,0.30362313,605.93,604.85,0.33066049]
[1743458697497,0.30362313,605.92,604.85,0.33066049]
[1743458697690,0.30362313,605.91,604.85,0.33066049]
[1743458697888,0.30362313,605.9,604.85,0.33066049]
[1743458698091,0.30362313,606.01,604.85,0.33066049]
[1743458698298,0.30362313,606.0,604.85,0.33066049]
[1743458698595,0.30362313,605.99,604.85,0.33066049]
[1743458698788,0.30362313,605.98,604.85,0.33066049]
[1743458698993,0.30362313,605.97,604.85,0.33066049]
[1743458699192,0.30362313,605.96,604.85,0.33066049]
[1743458699393,0.30362313,605.95,604.85,0.33066049]
[1743458699590,0.30362313,605.94,604.85,0.33066049]
[1743458699796,0.30362313,606.2,604.85,0.33066049]
[1743458699995,0.30362313,605.93,604.85,0.33066049]
[1743458700995,0.2874762,606.19,604.85,0.33066049]
[1743458701191,0.30362313,606.18,604.85,0.33066049]
[1743458701391,0.30362313,606.17,604.85,0.33066049]
[1743458701591,0.30362313,606.16,604.85,0.33066049]
[1743458701796,0.30362313,606.18,604.85,0.33066049]
[1743458701993,0.30362313,606.17,604.85,0.33066049]
[1743458702193,0.30362313,606.18,604.85,0.33066049]
[1743458702397,0.30362313,606.17,604.85,0.33066049]
[1743458702594,0.59111833,606.16,604.85,0.33066049]
[1743458702796,0.30362313,606.15,604.85,0.33066049]
[1743458705600,0.28745245,606.14,604.85,0.33066049]
[1743458706008,0.30362313,606.13,604.85,0.33066049]
[1743458708500,0.30362313,606.12,604.85,0.33066049]
[1743458708709,0.30362313,606.11,604.85,0.33066049]
[1743458711611,0.59112902,606.1,604.85,0.33066049]
[1743458711912,0.30362313,606.09,604.85,0.33066049]
[1743458712512,0.30363947,606.08,604.85,0.33066049]
[1743458712712,1.316,606.08,604.85,0.33066049]
[1743458713010,0.30363947,606.07,604.85,0.33066049]
[1743458714705,0.28756885,606.06,604.85,0.33066049]
[1743458714909,0.30363947,606.05,604.85,0.33066049]
[1743458715510,0.30363235,606.04,604.85,0.33066049]
[1743458715708,0.30363235,606.05,604.85,0.33066049]
[1743458715906,0.30363235,606.04,604.85,0.33066049]
[1743458716113,0.30363235,606.05,604.85,0.33066049]
[1743458716313,0.30363235,606.04,604.85,0.33066049]
[1743458716513,0.30363235,606.05,604.85,0.33066049]
[1743458716714,0.30363235,606.04,604.85,0.33066049]
[1743458717009,0.28756885,606.06,604.85,0.33066049]
[1743458717214,0.30363726,606.05,604.85,0.33066049]